Workbook

Sheet Intro
B8: Risk Scenario Planning
E12: Version 1.11
B18: By:
B19: John P. Hewlett, University of Wyoming
B20: Dr. Jay Parsons, University of Nebraska-Lincoln
G25: © | H25: Copyright RightRisk - All rights reserved, 2013.

Sheet SimplePartialBudget
F1: corn grain vs corn silage plus oats
B3: Partial Budget For:
B4: Positive Effects | F4: Negative Effects
B5: Added Returns | C5: Quantity | D5: Value | E5: Total | F5: Added Costs | G5: Quantity | H5: Value
B6: Forage Rental Value | C6: 1 | D6: =C9*C10/C8 -> 147.6 | E6: =C6*D6 -> 147.6 | F6: Forage Production Cost | G6: 1 | H6: 70.06 | I6: =G6*H6 -> 70.06
E7: =C7*D7 -> 0 | F7: Interest @ 5.5% for 6 months | G7: 1 | H7: =H6*0.055*0.5 -> 1.92665 | I7: =G7*H7 -> 1.92665
B8: Forage acres per head | C8: 0.5 | E8: =C8*D8 -> 0 | F8: Corn silage harvest expense | G8: 1 | H8: 279.5 | I8: =G8*H8 -> 279.5
B9: Cow/calf pair rental rate per month | C9: 45 | E9: =C9*D9 -> 0 | I9: =G9*H9 -> 0
B10: Months | C10: 1.64 | E10: 0 | I10: 0
E11: 0 | I11: 0
B12: Silage sales | C12: 26 | D12: 40.25 | E12: 1046.5 | I12: 0
E13: 0 | I13: 0
E14: 0 | I14: 0
E15: 0 | I15: 0
E16: 0 | I16: 0
E17: 0 | I17: 0
E18: 0 | I18: 0
E19: 0 | I19: 0
E20: 0 | I20: 0
E21: 0 | I21: 0
E22: 0 | I22: 0
E23: 0 | I23: 0
E24: 0 | I24: 0
E25: 0 | I25: 0
B26: Total Added Returns | E26: =SUM(E6:E25) -> 1194.1 | F26: Total Added Costs | I26: =SUM(I6:I25) -> 351.48665
B27: Reduced Costs | C27: Quantity | D27: Value | F27: Reduced Returns | G27: Quantity | H27: Value
B28: Corn grain harvest expense | C28: 1 | D28: 53.14 | E28: =C28*D28 -> 53.14 | F28: Corn Grain Sales | G28: 230 | H28: 3.5 | I28: =G28*H28 -> 805
E29: =C29*D29 -> 0 | F29: Corn Stalk Rental value | G29: 1 | H29: 15 | I29: =G29*H29 -> 15
E30: =C30*D30 -> 0 | I30: =G30*H30 -> 0
E31: =C31*D31 -> 0 | I31: =G31*H31 -> 0
E32: 0 | I32: 0
E33: 0 | I33: 0
E34: 0 | I34: 0
E35: 0 | I35: 0
E36: 0 | I36: 0
E37: 0 | I37: 0
E38: 0 | I38: 0
E39: 0 | I39: 0
E40: 0 | I40: 0
E41: 0 | I41: 0
E42: 0 | I42: 0
E43: 0 | I43: 0
E44: 0 | I44: 0
E45: 0 | I45: 0
E46: 0 | I46: 0
E47: 0 | I47: 0
B48: Total Reduced Costs | E48: =SUM(E28:E47) -> 53.14 | F48: Total Reduced Returns | I48: =SUM(I28:I47) -> 820
B50: Total Positive Effects | F50: Total Negative Effects
B51: (Added Returns + Reduced Costs) | E51: =E26+E48 -> 1247.24 | F51: (Added Costs + Reduced Returns) | I51: =I26+I48 -> 1171.48665
B53: =CONCATENATE("Net Benefit of: ",IF(F1="Enter description of action/concern here","",F1)) -> Net Benefit of: corn grain vs corn silage plus oats | I53: =E51-I51 -> 75.75335
B55: Risk Scenarios
B56: Uncertain Value 1 | F56: Uncertain Value 2
B57: Description | C57: Cell | F57: Description | G57: Cell
B58: Corn Grain Price | C58: H28 | F58: Cow grazing costs | G58: C9
B60: Current Value (Most Likely) | C60: 3.5 | F60: Current Value (Most Likely) | G60: 45
B61: Minimum Value | C61: 2.5 | F61: Minimum Value | G61: 35
B62: Maximum Value | C62: 4 | F62: Maximum Value | G62: 75

Sheet ComplexPartialBudget (hidden)
H1: Enter description of action/concern here
G3: Partial Budget For:
D4: Positive Effects ($ per Year) | J4: Negative Effects ($ per Year)
C5: Added Returns | F5: Profitability | G5: Cash Flow | I5: Added Costs | L5: Profitibility | M5: Cash Flow
B6: 1 | H6: 1
B7: 2 | H7: 2
B8: 3 | H8: 3
B9: 4 | H9: 4
B10: 5 | H10: 5
B11: 6 | H11: 6
B12: 7 | H12: 7
B13: 8 | H13: 8
B14: 9 | H14: 9
B15: 10 | H15: 10
B16: 11 | H16: 11
B17: 12 | H17: 12
B18: 13 | H18: 13
B19: 14 | H19: 14
B20: 15 | H20: 15
B21: 16 | H21: 16
B22: 17 | H22: 17
B23: 18 | H23: 18
B24: 19 | H24: 19
B25: 20 | H25: 20
C26: Total Added Returns | F26: =SUM(F6:F25) -> 0 | G26: =SUM(G6:G25) -> 0 | I26: Total Added Costs | L26: =SUM(L6:L25) -> 0 | M26: =SUM(M6:M25) -> 0
C28: Reduced Costs | F28: Profitibility | G28: Cash Flow | I28: Reduced Returns | L28: Profitibility | M28: Cash Flow
B29: 1 | H29: 1
B30: 2 | H30: 2
B31: 3 | H31: 3
B32: 4 | H32: 4
B33: 5 | H33: 5
B34: 6 | H34: 6
B35: 7 | H35: 7
B36: 8 | H36: 8
B37: 9 | H37: 9
B38: 10 | H38: 10
B39: 11 | H39: 11
B40: 12 | H40: 12
B41: 13 | H41: 13
B42: 14 | H42: 14
B43: 15 | H43: 15
B44: 16 | H44: 16
B45: 17 | H45: 17
B46: 18 | H46: 18
B47: 19 | H47: 19
B48: 20 | H48: 20
C49: Total Reduced Costs | F49: =SUM(F29:F48) -> 0 | G49: =SUM(G29:G48) -> 0 | I49: Total Reduced Returns | L49: =SUM(L29:L48) -> 0 | M49: =SUM(M29:M48) -> 0
C51: Total Positive Effects | F51: =F26+F49 -> 0 | G51: =G26+G49 -> 0 | I51: Total Negative Effects | L51: =L26+L49 -> 0 | M51: =M26+M49 -> 0
G52: Financial Analysis
B53: 1 | C53: Change in annual profit:
D54: Total Positive Effect (Profit Column) | J54: =F51 -> 0 | K54: A
D55: Minus:
D56: Total Negative Effect (Profit Column) | J56: =L51 -> 0 | K56: B | L56: (A-B) | M56: =F51-L51 -> 0 | N56: #1
B58: 2 | C58: Average Annual Rate of Return on Investment:
D59: Annual Profit or (Loss) From Line #1 | J59: =M56 -> 0 | K59: C
D60: Plus:
D61: Interest Cost (ON INVESTMENTS) From Profit Column | J61: 0 | K61: D
D62: Divided By:
D63: Dollars Invested | J63: 0 | K63: E ((C+D)/E)x100 =% | M63: =IF(J61<=0,NA(),J59+J61/J63) ->  | N63: #2
B65: 3 | C65: After-tax Cash Available for Annual Retirement of Principal:
D66: Total Positive Effect (Cash Flow Column) | J66: =G51 -> 0 | K66: F
D67: Minus:
D68: Total Negative Effect (Cash Flow Column) | J68: =M51 -> 0 | K68: G
D69: Minus:
D70: Change in Profit | J70: =M56 -> 0 | K70: H
D71: Times:
D72: Marginal Tax Rate (Combined State and Federal) | J72: 0.48 | K72: I [(F-G)-(H x I)] | M72: =J66-J68-(J70*J72) -> 0 | N72: #3
B74: 4 | C74: Years to Recover Debt:
D75: Loan Amount | F75: 0 | G75: Divided by | I75: Line #3 | J75: =M72 -> 0 | L75: Equals: | M75: =IF(F75<=0,NA(),F75/J75) ->  | N75: #4

Sheet RV1 (hidden)
A1: TRUE
B2: DISTRIBUTION SCHEDULE | H2: Random
G3: Iteration | H3: Draw | I3: Value
C4: Interval | D4: Unit | G4: 1 | H4: 0.8784519421 | I4: =IF(Max>Min,BETAINV(H4,ShapeA,ShapeB,Min,Max),Min) -> 3.714213543
C5: 0.5 | G5: 2 | H5: 0.1564518023 | I5: 3.148727845
C6: 0.5 | G6: 3 | H6: 0.2146774587 | I6: 3.210082595
C7: 0.25 | G7: 4 | H7: 0.4686818479 | I7: 3.410500616
C8: =(Max-Min)/35 -> 0.04285714286 | D8: =IF(B8="Days","Day",IF(B8="Weeks","Week","Month")) -> Month | G8: 5 | H8: 0.3315335725 | I8: 3.310509471
G9: 6 | H9: 0.7097902835 | I9: 3.576283681
B10: INPUTS | G10: 7 | H10: 0.6116825683 | I10: 3.507989317
B11: Min | C11: =SimplePartialBudget!C61 -> 2.5 | D11: =B8 -> 0 | G11: 8 | H11: 0.8234668504 | I11: 3.66397056
B12: Max | C12: =SimplePartialBudget!C62 -> 4 | D12: =B8 -> 0 | G12: 9 | H12: 0.3047262842 | I12: 3.289222013
B13: Mode | C13: =SimplePartialBudget!C60 -> 3.5 | D13: =B8 -> 0 | G13: 10 | H13: 0.1071912873 | I13: 3.084909968
G14: 11 | H14: 0.5000232828 | I14: 3.432094195
B15: PERT ESTIMATES | G15: 12 | H15: 0.7737583031 | I15: 3.623819947
B16: Mean | C16: =(Min+Max+4*Mode)/6 -> 3.416666667 | D16: =B8 -> 0 | G16: 13 | H16: 0.2018037162 | I16: 3.197424882
B17: Std. Dev. | C17: =(Max-Min)/6 -> 0.25 | D17: =B8 -> 0 | G17: 14 | H17: 0.7358527122 | I17: 3.595234501
B18: Skew | C18: =(2*(ShapeB-ShapeA)/(ShapeA+ShapeB+2))*((ShapeA+ShapeB+1)/(ShapeA*ShapeB))^0.5 -> -0.2790697674 | G18: 15 | H18: 0.3434914446 | I18: 3.319763606
B19: Shape A | C19: =IF(Max>Min,((Mean-Min)/(Max-Min))*((((Mean-Min)*(Max-Mean))/(StdDev^2))-1),0) -> 4.617283951 | G19: 16 | H19: 0.3955516475 | I19: 3.358649093
B20: Shape B | C20: =ShapeA*(Max-Mean)/(Mean-Min) -> 2.938271605 | G20: 17 | H20: 0.07860582201 | I20: 3.038742002
G21: 18 | H21: 0.2808874198 | I21: 3.269560513
B22: CALCULATED VALUES | G22: 19 | H22: 0.07137048235 | I22: 3.025342162
B23: Mean - Mode | D23: Weeks | G23: 20 | H23: 0.3466516786 | I23: 3.322186788
B24: Median - Mode | C24: 3.099706411 | D24: Weeks | G24: 21 | H24: 0.07817217402 | I24: 3.037962554
B25: Gammaa | C25: 1.465425583 | G25: 22 | H25: 0.23345137 | I25: 3.227819412
B26: Gammab | C26: 14.73721569 | G26: 23 | H26: 0.09965283004 | I26: 3.073599769
B27: Gammaab | C27: 1272.633337 | G27: 24 | H27: 0.5708741404 | I27: 3.480273395
B28: BetaFn | C28: 0.001696976833 | G28: 25 | H28: 0.2384872257 | I28: 3.232446079
G29: 26 | H29: 0.02566996562 | I29: 2.905941365
G30: 27 | H30: 0.3589285738 | I30: 3.331516706
B31: Data | C31: PDF No Data | D31: CDF No Data | G31: 28 | H31: 0.02943851056 | I31: 2.919881539
A32: 1 | B32: =Min -> 2.5 | C32: =(D33-D32) -> 2.496912888e-06 | D32: 0 | G32: 29 | H32: 0.1861171816 | I32: 3.181373438
A33: 2 | B33: =+B32+((Max-Min)/30) -> 2.55 | C33: =+D34-D33 -> 5.54890913e-05 | D33: =BETADIST(B33,ShapeA,ShapeB,Min,Max) -> 2.496912888e-06 | G33: 30 | H33: 0.0360447801 | I33: 2.941536383
A34: 3 | B34: 2.6 | C34: 0.0002982064609 | D34: 5.798600419e-05 | G34: 31 | H34: 0.5645094249 | I34: 3.475959359
A35: 4 | B35: 2.65 | C35: 0.0009118736083 | D35: 0.0003561924651 | G35: 32 | H35: 0.4088927099 | I35: 3.368309291
A36: 5 | B36: 2.7 | C36: 0.002077138175 | D36: 0.001268066073 | G36: 33 | H36: 0.3535528791 | I36: 3.327447396
A37: 6 | B37: 2.75 | C37: 0.003950046767 | D37: 0.003345204248 | G37: 34 | H37: 0.402081581 | I37: 3.363390729
A38: 7 | B38: 2.8 | C38: 0.006646428913 | D38: 0.007295251015 | G38: 35 | H38: 0.1999454762 | I38: 3.195561102
A39: 8 | B39: 2.85 | C39: 0.01023171241 | D39: 0.01394167993 | G39: 36 | H39: 0.307604856 | I39: 3.291546917
A40: 9 | B40: 2.9 | C40: 0.01471482417 | D40: 0.02417339234 | G40: 37 | H40: 0.9590848768 | I40: 3.815766496
A41: 10 | B41: 2.95 | C41: 0.0200454228 | D41: 0.03888821651 | G41: 38 | H41: 0.8690696944 | I41: 3.705026022
A42: 11 | B42: 3 | C42: 0.02611398897 | D42: 0.05893363931 | G42: 39 | H42: 0.917440395 | I42: 3.756608129
A43: 12 | B43: 3.05 | C43: 0.03275445259 | D43: 0.08504762828 | G43: 40 | H43: 0.9078934365 | I43: 3.745454965
A44: 13 | B44: 3.1 | C44: 0.03974912938 | D44: 0.1178020809 | G44: 41 | H44: 0.04614991585 | I44: 2.969813754
A45: 14 | B45: 3.15 | C45: 0.04683580073 | D45: 0.1575512102 | G45: 42 | H45: 0.728701758 | I45: 3.589985716
A46: 15 | B46: 3.2 | C46: 0.05371681423 | D46: 0.204387011 | G46: 43 | H46: 0.04866417152 | I46: 2.976167599
A47: 16 | B47: 3.25 | C47: 0.06007011552 | D47: 0.2581038252 | G47: 44 | H47: 0.3235483383 | I47: 3.304250488
A48: 17 | B48: 3.3 | C48: 0.06556214901 | D48: 0.3181739407 | G48: 45 | H48: 0.1289955818 | I48: 3.115016717
A49: 18 | B49: 3.35 | C49: 0.06986258904 | D49: 0.3837360897 | G49: 46 | H49: 0.05397892591 | I49: 2.988890055
A50: 19 | B50: 3.4 | C50: 0.07266088698 | D50: 0.4535986788 | G50: 47 | H50: 0.6950386607 | I50: 3.565753485
A51: 20 | B51: 3.45 | C51: 0.07368464509 | D51: 0.5262595657 | G51: 48 | H51: 0.0009739403319 | I51: 2.688325113
A52: 21 | B52: 3.5 | C52: 0.07271985935 | D52: 0.5999442108 | G52: 49 | H52: 0.408020472 | I52: 3.367680921
A53: 22 | B53: 3.55 | C53: 0.0696331144 | D53: 0.6726640702 | G53: 50 | H53: 0.5717081049 | I53: 3.480838696
A54: 23 | B54: 3.6 | C54: 0.06439587389 | D54: 0.7422971846 | G54: 51 | H54: 0.1906324356 | I54: 3.186069942
A55: 24 | B55: 3.65 | C55: 0.05711110353 | D55: 0.8066930585 | G55: 52 | H55: 0.9378213487 | I55: 3.782866318
A56: 25 | B56: 3.7 | C56: 0.04804262613 | D56: 0.863804162 | G56: 53 | H56: 0.1095615759 | I56: 3.088360475
A57: 26 | B57: 3.75 | C57: 0.03764791181 | D57: 0.9118467881 | G57: 54 | H57: 0.6662152279 | I57: 3.54550116
A58: 27 | B58: 3.8 | C58: 0.0266156478 | D58: 0.9494947 | G58: 55 | H58: 0.3293273623 | I58: 3.308786759
A59: 28 | B59: 3.85 | C59: 0.01591101241 | D59: 0.9761103478 | G59: 56 | H59: 0.2711103769 | I59: 3.26126655
A60: 29 | B60: 3.9 | C60: 0.006836529437 | D60: 0.9920213602 | G60: 57 | H60: 0.1481186227 | I60: 3.138905889
A61: 30 | B61: 3.95 | C61: 0 | D61: 0.9988578896 | G61: 58 | H61: 0.1433724876 | I61: 3.133161865
A62: 31 | B62: =Max -> 4 | C62: =+D62-D61 -> 0 | D62: =BETADIST(B61,ShapeA,ShapeB,Min,Max) -> 0.9988578896 | G62: 59 | H62: 0.7596598828 | I62: 3.613022936
C63: =SUM(C32:C62) -> 0.9988578896 | G63: 60 | H63: 0.3866056428 | I63: 3.352109077
B64: Cumulative Beta Percentile | D64: =B8 -> 0 | G64: 61 | H64: 0.1433153348 | I64: 3.133091996
B65: 0.25 | D65: =BETAINV(B65,ShapeA,ShapeB,Min,Max) -> 3.24283475 | G65: 62 | H65: 0.2038380631 | I65: 3.199454316
B66: 0.5 | D66: =BETAINV(B66,ShapeA,ShapeB,Min,Max) -> 3.432078247 | G66: 63 | H66: 0.5639411686 | I66: 3.475574198
B67: 0.75 | D67: =BETAINV(B67,ShapeA,ShapeB,Min,Max) -> 3.605742949 | G67: 64 | H67: 0.2253004546 | I67: 3.220216918
B68: 0.9 | D68: =BETAINV(B68,ShapeA,ShapeB,Min,Max) -> 3.736658652 | G68: 65 | H68: 0.1334883535 | I68: =IF(Max>Min,BETAINV(H68,ShapeA,ShapeB,Min,Max),Min) -> 3.12081527
B69: 0.95 | D69: =BETAINV(B69,ShapeA,ShapeB,Min,Max) -> 3.800787559 | G69: 66 | H69: 0.103046686 | I69: 3.07875735
G70: 67 | H70: 0.9708064565 | I70: 3.83816111
B71: Quick Estimate at 95% Probability | G71: 68 | H71: 0.06611625733 | I71: 3.01503089
B72: Mean + 2x Std. Dev.= | C72: =Mean+2*StdDev -> 3.916666667 | D72: =B8 -> 0 | G72: 69 | H72: 0.327765248 | I72: 3.30756399
B73: Mean - 2x Std. Dev.= | C73: =Mean-2*StdDev -> 2.916666667 | D73: =B8 -> 0 | G73: 70 | H73: 0.9423645824 | I73: 3.789311221
G74: 71 | H74: 0.248965223 | I74: 3.241911301
G75: 72 | H75: 0.004806952317 | I75: 2.772013545
G76: 73 | H76: 0.2682037702 | I76: 3.258772609
G77: 74 | H77: 0.589878983 | I77: 3.493162822
G78: 75 | H78: 0.2277213957 | I78: 3.222490114
G79: 76 | H79: 0.170498495 | I79: 3.164600582
G80: 77 | H80: 0.3507462641 | I80: 3.325313035
G81: 78 | H81: 0.8330492313 | I81: 3.672187491
G82: 79 | H82: 0.3311808804 | I82: 3.310234403
G83: 80 | H83: 0.6836968666 | I83: 3.557738061
G84: 81 | H84: 0.1238537894 | I84: 3.108224366
G85: 82 | H85: 0.09151454136 | I85: 3.060751347
G86: 83 | H86: 0.4871142128 | I86: 3.423232307
G87: 84 | H87: 0.3007297492 | I87: 3.285977423
G88: 85 | H88: 0.5431824367 | I88: 3.461497827
G89: 86 | H89: 0.9266328381 | I89: 3.767980505
G90: 87 | H90: 0.8378073199 | I90: 3.67633888
G91: 88 | H91: 0.8163095191 | I91: 3.657948847
G92: 89 | H92: 0.5517277242 | I92: 3.467294545
G93: 90 | H93: 0.2418574847 | I93: 3.235513818
G94: 91 | H94: 0.4328025706 | I94: 3.385375567
G95: 92 | H95: 0.09014543175 | I95: 3.058517677
G96: 93 | H96: 0.2095170718 | I96: 3.205060652
G97: 94 | H97: 0.6152604939 | I97: 3.510428701
G98: 95 | H98: 0.8354341955 | I98: 3.674262168
G99: 96 | H99: 0.8883456778 | I99: 3.724263588
G100: 97 | H100: 0.6757833395 | I100: 3.55218227
G101: 98 | H101: 0.9210306353 | I101: 3.760968984
G102: 99 | H102: 0.1068295732 | I102: 3.084379139
G103: 100 | H103: 0.8287429851 | I103: 3.668471916
G104: 101 | H104: 0.04612733891 | I104: 2.969755629
G105: 102 | H105: 0.64943653 | I105: 3.533868964
G106: 103 | H106: 0.9325177532 | I106: 3.775649764
G107: 104 | H107: 0.8457285976 | I107: 3.683364293
G108: 105 | H108: 0.8073253294 | I108: 3.650517909
G109: 106 | H109: 0.2260475294 | I109: 3.220919794
G110: 107 | H110: 0.6800600652 | I110: 3.555181244
G111: 108 | H111: 0.08799900637 | I111: 3.054970794
G112: 109 | H112: 0.1118505521 | I112: 3.091647763
G113: 110 | H113: 0.9052157126 | I113: 3.742431022
G114: 111 | H114: 0.8389034867 | I114: 3.677302379
G115: 112 | H115: 0.4549900057 | I115: 3.40097209
G116: 113 | H116: 0.5149999675 | I116: 3.442330114
G117: 114 | H117: 0.6516064477 | I117: 3.53536788
G118: 115 | H118: 0.934937911 | I118: 3.778904475
G119: 116 | H119: 0.1510454075 | I119: 3.142392613
G120: 117 | H120: 0.3616902809 | I120: 3.333597928
G121: 118 | H121: 0.6836813375 | I121: 3.557727131
G122: 119 | H122: 0.9776910915 | I122: 3.853818084
G123: 120 | H123: 0.2517759947 | I123: 3.244415101
G124: 121 | H124: 0.01182085095 | I124: 2.836427306
G125: 122 | H125: 0.0003309842208 | I125: 2.647543795
G126: 123 | H126: 0.9577577658 | I126: 3.813471486
G127: 124 | H127: 0.1282944359 | I127: 3.114100548
G128: 125 | H128: 0.4929292253 | I128: 3.427229227
G129: 126 | H129: 0.566483626 | I129: 3.477297457
G130: 127 | H130: 0.4803980803 | I130: 3.418604854
G131: 128 | H131: 0.4691977022 | I131: 3.410858347
G132: 129 | H132: 0.2675028125 | I132: =IF(Max>Min,BETAINV(H132,ShapeA,ShapeB,Min,Max),Min) -> 3.258169166
G133: 130 | H133: 0.9082263045 | I133: 3.745833881
G134: 131 | H134: 0.8250353894 | I134: 3.665303062
G135: 132 | H135: 0.9921814668 | I135: 3.900734005
G136: 133 | H136: 0.0175651437 | I136: 2.870059826
G137: 134 | H137: 0.6463262507 | I137: 3.531723042
G138: 135 | H138: 0.089343351 | I138: 3.057198798
G139: 136 | H139: 0.03568418496 | I139: 2.940430015
G140: 137 | H140: 0.1618635037 | I140: 3.154939388
G141: 138 | H141: 0.2408234566 | I141: 3.234575001
G142: 139 | H142: 0.2324340656 | I142: 3.226878374
G143: 140 | H143: 0.7447720872 | I143: 3.601839469
G144: 141 | H144: 0.2399927793 | I144: 3.233819282
G145: 142 | H145: 0.4949218066 | I145: 3.428596887
G146: 143 | H146: 0.5640942772 | I146: 3.475677974
G147: 144 | H147: 0.02490650671 | I147: 2.902942256
G148: 145 | H148: 0.8512006584 | I148: 3.688306913
G149: 146 | H149: 0.09338639335 | I149: 3.063770264
G150: 147 | H150: 0.4688587701 | I150: 3.410623317
G151: 148 | H151: 0.474438187 | I151: 3.414487626
G152: 149 | H152: 0.7597264173 | I152: 3.613073396
G153: 150 | H153: 0.4449700311 | I153: 3.393954297
G154: 151 | H154: 0.1209712603 | I154: 3.1043392
G155: 152 | H155: 0.934789951 | I155: 3.778703692
G156: 153 | H156: 0.09341043627 | I156: 3.063808783
G157: 154 | H157: 0.2129096305 | I157: 3.208369748
G158: 155 | H158: 0.6901047062 | I158: 3.562258541
G159: 156 | H159: 0.7271066801 | I159: 3.588820281
G160: 157 | H160: 0.5074845637 | I160: 3.437199102
G161: 158 | H161: 0.2217675438 | I161: 3.216875877
G162: 159 | H162: 0.6303712035 | I162: 3.520757978
G163: 160 | H163: 0.4729317653 | I163: 3.41344525
G164: 161 | H164: 0.03980638741 | I164: 2.952640331
G165: 162 | H165: 0.3944581116 | I165: 3.357852439
G166: 163 | H166: 0.09365205739 | I166: 3.064195526
G167: 164 | H167: 0.7177938672 | I167: 3.582052686
G168: 165 | H168: 0.6721946143 | I168: 3.549671923
G169: 166 | H169: 0.5171877983 | I169: 3.443821961
G170: 167 | H170: 0.00165174776 | I170: 2.712467011
G171: 168 | H171: 0.7191172404 | I171: 3.583010669
G172: 169 | H172: 0.1399310977 | I172: 3.128924097
G173: 170 | H173: 0.7561657396 | I173: 3.610379188
G174: 171 | H174: 0.9070332978 | I174: 3.744478953
G175: 172 | H175: 0.7522818994 | I175: 3.607454589
G176: 173 | H176: 0.4763314641 | I176: 3.415796697
G177: 174 | H177: 0.02447376549 | I177: 2.901213104
G178: 175 | H178: 0.6082180733 | I178: 3.505629259
G179: 176 | H179: 0.7379245073 | I179: 3.596762778
G180: 177 | H180: 0.2719760492 | I180: 3.262006761
G181: 178 | H181: 0.1223419655 | I181: 3.106193832
G182: 179 | H182: 0.7215997371 | I182: 3.58481099
G183: 180 | H183: 0.1033814851 | I183: 3.079260184
G184: 181 | H184: 0.1537975167 | I184: 3.145634265
G185: 182 | H185: 0.5028491548 | I185: 3.434028979
G186: 183 | H186: 0.79277499 | I186: 3.638754644
G187: 184 | H187: 0.6438478564 | I187: 3.530015177
G188: 185 | H188: 0.2701414003 | I188: 3.260436621
G189: 186 | H189: 0.729242716 | I189: 3.590381397
G190: 187 | H190: 0.5721584064 | I190: 3.481143937
G191: 188 | H191: 0.9090153506 | I191: 3.746734802
G192: 189 | H192: 0.8702693875 | I192: 3.706183753
G193: 190 | H193: 0.9416549899 | I193: 3.78828726
G194: 191 | H194: 0.7925609831 | I194: 3.63858394
G195: 192 | H195: 0.8865766457 | I195: 3.722436948
G196: 193 | H196: 0.8231806237 | I196: =IF(Max>Min,BETAINV(H196,ShapeA,ShapeB,Min,Max),Min) -> 3.663727915
G197: 194 | H197: 0.8432898909 | I197: 3.681185587
G198: 195 | H198: 0.7492364968 | I198: 3.605171327
G199: 196 | H199: 0.6149313196 | I199: 3.510204182
G200: 197 | H200: 0.1650567421 | I200: 3.158546799
... 803 more rows

Sheet RV2 (hidden)
A1: TRUE
B2: DISTRIBUTION SCHEDULE | H2: Random
G3: Iteration | H3: Draw | I3: Value
C4: Interval | D4: Unit | G4: 1 | H4: 0.9043332157 | I4: =IF(Max>Min,BETAINV(H4,ShapeA,ShapeB,Min,Max),Min) -> 57.81437988
C5: 0.5 | G5: 2 | H5: 0.1316419022 | I5: 40.78624653
C6: 0.5 | G6: 3 | H6: 0.1142581542 | I6: 40.38073463
C7: 0.25 | G7: 4 | H7: 0.2383300442 | I7: 42.96590335
C8: =(Max-Min)/35 -> 1.142857143 | D8: =IF(B8="Days","Day",IF(B8="Weeks","Week","Month")) -> Month | G8: 5 | H8: 0.6099763426 | I8: 49.75101598
G9: 6 | H9: 0.6907412016 | I9: 51.44160088
B10: INPUTS | G10: 7 | H10: 0.5433191831 | I10: 48.46749433
B11: Min | C11: =SimplePartialBudget!G61 -> 35 | D11: =B8 -> 0 | G11: 8 | H11: 0.8088231384 | I11: 54.40812866
B12: Max | C12: =SimplePartialBudget!G62 -> 75 | D12: =B8 -> 0 | G12: 9 | H12: 0.7105582606 | I12: 51.88872104
B13: Mode | C13: =SimplePartialBudget!G60 -> 45 | D13: =B8 -> 0 | G13: 10 | H13: 0.8591628824 | I13: 56.01503398
G14: 11 | H14: 0.5339007075 | I14: 48.29180775
B15: PERT ESTIMATES | G15: 12 | H15: 0.348524444 | I15: 44.96949816
B16: Mean | C16: =(Min+Max+4*Mode)/6 -> 48.33333333 | D16: =B8 -> 0 | G16: 13 | H16: 0.994695583 | I16: 66.36496714
B17: Std. Dev. | C17: =(Max-Min)/6 -> 6.666666667 | D17: =B8 -> 0 | G17: 14 | H17: 0.4795195277 | I17: 47.29711544
B18: Skew | C18: =(2*(ShapeB-ShapeA)/(ShapeA+ShapeB+2))*((ShapeA+ShapeB+1)/(ShapeA*ShapeB))^0.5 -> 0.4444444444 | G18: 15 | H18: 0.7638161873 | I18: 53.17955289
B19: Shape A | C19: =IF(Max>Min,((Mean-Min)/(Max-Min))*((((Mean-Min)*(Max-Mean))/(StdDev^2))-1),0) -> 2.333333333 | G19: 16 | H19: 0.9038350122 | I19: 57.79172182
B20: Shape B | C20: =ShapeA*(Max-Mean)/(Mean-Min) -> 4.666666667 | G20: 17 | H20: 0.1977636565 | I20: 42.18154771
G21: 18 | H21: 0.8650536465 | I21: 56.2257611
B22: CALCULATED VALUES | G22: 19 | H22: 0.6432842028 | I22: 50.42619478
B23: Mean - Mode | D23: Weeks | G23: 20 | H23: 0.8553953561 | I23: 55.88322609
B24: Median - Mode | C24: 3.099706411 | D24: Weeks | G24: 21 | H24: 0.7116825702 | I24: 51.91456219
B25: Gammaa | C25: 1.465425583 | G25: 22 | H25: 0.4877451317 | I25: 47.44574119
B26: Gammab | C26: 14.73721569 | G26: 23 | H26: 0.6223794944 | I26: 49.9993348
B27: Gammaab | C27: 1272.633337 | G27: 24 | H27: 0.5636421587 | I27: 48.85085176
B28: BetaFn | C28: 0.001696976833 | G28: 25 | H28: 0.962558608 | I28: 61.36483516
G29: 26 | H29: 0.3588909072 | I29: 45.15331116
G30: 27 | H30: 0.7404421673 | I30: 52.59502855
B31: Data | C31: PDF No Data | D31: CDF No Data | G31: 28 | H31: 0.3388573997 | I31: 44.79773367
A32: 1 | B32: =Min -> 35 | C32: =(D33-D32) -> 0.005778679334 | D32: 0 | G32: 29 | H32: 0.745441133 | I32: 52.71746366
A33: 2 | B33: =+B32+((Max-Min)/30) -> 36.33333333 | C33: =+D34-D33 -> 0.02089677102 | D33: =BETADIST(B33,ShapeA,ShapeB,Min,Max) -> 0.005778679334 | G33: 30 | H33: 0.8681063983 | I33: 56.33731664
A34: 3 | B34: 37.66666667 | C34: 0.03616283326 | D34: 0.02667545036 | G34: 31 | H34: 0.5407766958 | I34: 48.41995183
A35: 4 | B35: 39 | C35: 0.04944980075 | D35: 0.06283828362 | G35: 32 | H35: 0.4117174182 | I35: 46.0877372
A36: 5 | B36: 40.33333333 | C36: 0.06005676905 | D36: 0.1122880844 | G36: 33 | H36: 0.07697506396 | I36: 39.41646225
A37: 6 | B37: 41.66666667 | C37: 0.06779180505 | D37: 0.1723448534 | G37: 34 | H37: 0.2522634533 | I37: 43.22736375
A38: 7 | B38: 43 | C38: 0.07272036841 | D38: 0.2401366585 | G38: 35 | H38: 0.9481613772 | I38: 60.24430548
A39: 8 | B39: 44.33333333 | C39: 0.07505251588 | D39: 0.3128570269 | G39: 36 | H39: 0.3653675105 | I39: 45.26799921
A40: 9 | B40: 45.66666667 | C40: 0.07508085489 | D40: 0.3879095428 | G40: 37 | H40: 0.8081585095 | I40: 54.3887918
A41: 10 | B41: 47 | C41: 0.07314213826 | D41: 0.4629903977 | G41: 38 | H41: 0.3724829439 | I41: 45.39390168
A42: 11 | B42: 48.33333333 | C42: 0.06959165697 | D42: 0.5361325359 | G42: 39 | H42: 0.919857464 | I42: 58.56458812
A43: 12 | B43: 49.66666667 | C43: 0.06478533326 | D43: 0.6057241929 | G43: 40 | H43: 0.009170635042 | I43: 36.63915655
A44: 13 | B44: 51 | C44: 0.05906683222 | D44: 0.6705095261 | G44: 41 | H44: 0.858031608 | I44: 55.9752202
A45: 14 | B45: 52.33333333 | C45: 0.05275815866 | D45: 0.7295763584 | G45: 42 | H45: 0.5166412844 | I45: 47.97274491
A46: 15 | B46: 53.66666667 | C46: 0.04615280506 | D46: 0.782334517 | G46: 43 | H46: 0.304862334 | I46: 44.18961041
A47: 16 | B47: 55 | C47: 0.03951085254 | D47: 0.8284873221 | G47: 44 | H47: 0.8275683413 | I47: 54.971431
A48: 17 | B48: 56.33333333 | C48: 0.03305562726 | D48: 0.8679981746 | G48: 45 | H48: 0.7164476629 | I48: 52.02468252
A49: 18 | B49: 57.66666667 | C49: 0.02697164042 | D49: 0.9010538019 | G49: 46 | H49: 0.7567849798 | I49: 53.00040196
A50: 19 | B50: 59 | C50: 0.02140362334 | D50: 0.9280254423 | G50: 47 | H50: 0.04513761938 | I50: 38.41296009
A51: 20 | B51: 60.33333333 | C51: 0.0164565265 | D51: 0.9494290656 | G51: 48 | H51: 0.1375051814 | I51: 40.91843136
A52: 21 | B52: 61.66666667 | C52: 0.01219639379 | D52: 0.9658855921 | G52: 49 | H52: 0.3804186664 | I52: 45.53423719
A53: 22 | B53: 63 | C53: 0.008652056335 | D53: 0.9780819859 | G53: 50 | H53: 0.6600950565 | I53: 50.77791494
A54: 23 | B54: 64.33333333 | C54: 0.00581761906 | D54: 0.9867340423 | G54: 51 | H54: 0.762829427 | I54: 53.15422831
A55: 24 | B55: 65.66666667 | C55: 0.003655740913 | D55: 0.9925516613 | G55: 52 | H55: 0.1763040058 | I55: 41.74833418
A56: 25 | B56: 67 | C56: 0.002101741072 | D56: 0.9962074022 | G56: 53 | H56: 0.7182021915 | I56: 52.06547805
A57: 26 | B57: 68.33333333 | C57: 0.001068604233 | D57: 0.9983091433 | G57: 54 | H57: 0.5520949664 | I57: 48.63228702
A58: 27 | B58: 69.66666667 | C58: 0.0004530199447 | D58: 0.9993777475 | G58: 55 | H58: 0.8123376684 | I58: 54.51106875
A59: 28 | B59: 71 | C59: 0.0001426999955 | D59: 0.9998307675 | G59: 56 | H59: 0.6527953563 | I59: 50.62420177
A60: 29 | B60: 72.33333333 | C60: 2.54472294e-05 | D60: 0.9999734675 | G60: 57 | H60: 0.7403777922 | I60: 52.59346047
A61: 30 | B61: 73.66666667 | C61: 0 | D61: 0.9999989147 | G61: 58 | H61: 0.5017024913 | I61: 47.69927435
A62: 31 | B62: =Max -> 75 | C62: =+D62-D61 -> 0 | D62: =BETADIST(B61,ShapeA,ShapeB,Min,Max) -> 0.9999989147 | G62: 59 | H62: 0.7921120218 | I62: 53.93371611
C63: =SUM(C32:C62) -> 0.9999989147 | G63: 60 | H63: 0.6085976514 | I63: 49.72362466
B64: Cumulative Beta Percentile | D64: =B8 -> 0 | G64: 61 | H64: 0.4016919099 | I64: 45.91034879
B65: 0.25 | D65: =BETAINV(B65,ShapeA,ShapeB,Min,Max) -> 43.1851175 | G65: 62 | H65: 0.8676140547 | I65: 56.31921246
B66: 0.5 | D66: =BETAINV(B66,ShapeA,ShapeB,Min,Max) -> 47.66825212 | G66: 63 | H66: 0.9942554212 | I66: 66.20622196
B67: 0.75 | D67: =BETAINV(B67,ShapeA,ShapeB,Min,Max) -> 52.8302985 | G67: 64 | H67: 0.6035445903 | I67: 49.62357865
B68: 0.9 | D68: =BETAINV(B68,ShapeA,ShapeB,Min,Max) -> 57.61990174 | G68: 65 | H68: 0.722945712 | I68: =IF(Max>Min,BETAINV(H68,ShapeA,ShapeB,Min,Max),Min) -> 52.17646057
B69: 0.95 | D69: =BETAINV(B69,ShapeA,ShapeB,Min,Max) -> 60.37394505 | G69: 66 | H69: 0.4828324815 | I69: 47.35691006
G70: 67 | H70: 0.3789847432 | I70: 45.50888408
B71: Quick Estimate at 95% Probability | G71: 68 | H71: 0.5927617592 | I71: 49.41184153
B72: Mean + 2x Std. Dev.= | C72: =Mean+2*StdDev -> 61.66666667 | D72: =B8 -> 0 | G72: 69 | H72: 0.6584323468 | I72: 50.7427648
B73: Mean - 2x Std. Dev.= | C73: =Mean-2*StdDev -> 35 | D73: =B8 -> 0 | G73: 70 | H73: 0.07988907053 | I73: 39.49801663
G74: 71 | H74: 0.5999418272 | I74: 49.55257238
G75: 72 | H75: 0.8864465247 | I75: 57.04587184
G76: 73 | H76: 0.4721830335 | I76: 47.16500059
G77: 74 | H77: 0.2271985448 | I77: 42.75440939
G78: 75 | H78: 0.9779921614 | I78: 62.98839447
G79: 76 | H79: 0.005019005398 | I79: 36.25233919
G80: 77 | H80: 0.2863891416 | I80: 43.85533531
G81: 78 | H81: 0.5387157793 | I81: 48.3814783
G82: 79 | H82: 0.5328878986 | I82: 48.27298442
G83: 80 | H83: 0.9579855794 | I83: 60.97988947
G84: 81 | H84: 0.3944800908 | I84: 45.78282458
G85: 82 | H85: 0.1221557895 | I85: 40.56766892
G86: 83 | H86: 0.5760374657 | I86: 49.08783412
G87: 84 | H87: 0.6045324552 | I87: 49.64309518
G88: 85 | H88: 0.7753897131 | I88: 53.48125796
G89: 86 | H89: 0.7792390505 | I89: 53.58360324
G90: 87 | H90: 0.07933375623 | I90: 39.48257493
G91: 88 | H91: 0.004063362954 | I91: 36.1403822
G92: 89 | H92: 0.2728048586 | I92: 43.60720488
G93: 90 | H93: 0.4324690862 | I93: 46.4556647
G94: 91 | H94: 0.29391541 | I94: 43.99192409
G95: 92 | H95: 0.01769182897 | I95: 37.20738957
G96: 93 | H96: 0.236866444 | I96: 42.93823536
G97: 94 | H97: 0.4717535035 | I97: 47.15727792
G98: 95 | H98: 0.9804963068 | I98: 63.32587128
G99: 96 | H99: 0.6987429705 | I99: 51.62029234
G100: 97 | H100: 0.06242224293 | I100: 38.98714549
G101: 98 | H101: 0.113998594 | I101: 40.37450774
G102: 99 | H102: 0.4915060676 | I102: 47.51388499
G103: 100 | H103: 0.2413838988 | I103: 43.02350411
G104: 101 | H104: 0.856029449 | I104: 55.90525418
G105: 102 | H105: 0.8401317342 | I105: 55.37060205
G106: 103 | H106: 0.03660879161 | I106: 38.09134697
G107: 104 | H107: 0.9090365546 | I107: 58.03232455
G108: 105 | H108: 0.08281559889 | I108: 39.57864841
G109: 106 | H109: 0.08220384613 | I109: 39.56189513
G110: 107 | H110: 0.1220686861 | I110: 40.5656329
G111: 108 | H111: 0.3859173228 | I111: 45.6314482
G112: 109 | H112: 0.666705643 | I112: 50.9184926
G113: 110 | H113: 0.6546352751 | I113: 50.66279942
G114: 111 | H114: 0.2669812041 | I114: 43.50012648
G115: 112 | H115: 0.1881724664 | I115: 41.98978501
G116: 113 | H116: 0.8791606637 | I116: 56.75597511
G117: 114 | H117: 0.7675078028 | I117: 53.27483973
G118: 115 | H118: 0.4200828302 | I118: 46.23590699
G119: 116 | H119: 0.5207093174 | I119: 48.04763136
G120: 117 | H120: 0.4285399759 | I120: 46.38589852
G121: 118 | H121: 0.4515409098 | I121: 46.79523607
G122: 119 | H122: 0.02128903917 | I122: 37.40288897
G123: 120 | H123: 0.2377035603 | I123: 42.95406525
G124: 121 | H124: 0.5913435126 | I124: 49.3841632
G125: 122 | H125: 0.5709750889 | I125: 48.99073909
G126: 123 | H126: 0.7550678175 | I126: 52.95710008
G127: 124 | H127: 0.000765402264 | I127: 35.54851952
G128: 125 | H128: 0.111209816 | I128: 40.30725188
G129: 126 | H129: 0.8216406121 | I129: 54.78938588
G130: 127 | H130: 0.9084145608 | I130: 58.00307105
G131: 128 | H131: 0.7271819434 | I131: 52.27644569
G132: 129 | H132: 0.1890058609 | I132: =IF(Max>Min,BETAINV(H132,ShapeA,ShapeB,Min,Max),Min) -> 42.00656121
G133: 130 | H133: 0.405043888 | I133: 45.96964
G134: 131 | H134: 0.3214154174 | I134: 44.48665996
G135: 132 | H135: 0.4175830233 | I135: 46.19161189
G136: 133 | H136: 0.07602167678 | I136: 39.38949192
G137: 134 | H137: 0.2667429888 | I137: 43.49573675
G138: 135 | H138: 0.1960812223 | I138: 42.14811164
G139: 136 | H139: 0.7673889684 | I139: 53.27175888
G140: 137 | H140: 0.7126462205 | I140: 51.93675334
G141: 138 | H141: 0.844968924 | I141: 55.52955266
G142: 139 | H142: 0.9679658155 | I142: 61.86632517
G143: 140 | H143: 0.9902291607 | I143: 65.06405064
G144: 141 | H144: 0.7393071547 | I144: 52.56741302
G145: 142 | H145: 0.5166706456 | I145: 47.97328474
G146: 143 | H146: 0.7654052862 | I146: 53.22046427
G147: 144 | H147: 0.01772968021 | I147: 37.20954718
G148: 145 | H148: 0.1675586749 | I148: 41.56712961
G149: 146 | H149: 0.8580992895 | I149: 55.97759641
G150: 147 | H150: 0.5174294972 | I150: 47.98724017
G151: 148 | H151: 0.6546589037 | I151: 50.66329573
G152: 149 | H152: 0.9891624217 | I152: 64.82283684
G153: 150 | H153: 0.1133164381 | I153: 40.35811635
G154: 151 | H154: 0.48349163 | I154: 47.36881732
G155: 152 | H155: 0.3232887878 | I155: 44.52015588
G156: 153 | H156: 0.7501001191 | I156: 52.83278944
G157: 154 | H157: 0.08332750838 | I157: 39.59262703
G158: 155 | H158: 0.2128768954 | I158: 42.47837629
G159: 156 | H159: 0.742791627 | I159: 52.6524064
G160: 157 | H160: 0.4820455506 | I160: 47.34269905
G161: 158 | H161: 0.2776024222 | I161: 43.69508845
G162: 159 | H162: 0.03907195664 | I162: 38.18760253
G163: 160 | H163: 0.2254024146 | I163: 42.72004462
G164: 161 | H164: 0.6607349081 | I164: 50.79146359
G165: 162 | H165: 0.928331418 | I165: 59.01695899
G166: 163 | H166: 0.6688854511 | I166: 50.96514418
G167: 164 | H167: 0.1550207393 | I167: 41.30181522
G168: 165 | H168: 0.1961250469 | I168: 42.14898365
G169: 166 | H169: 0.9295827046 | I169: 59.08683885
G170: 167 | H170: 0.6795606902 | I170: 51.1958304
G171: 168 | H171: 0.121159771 | I171: 40.54435424
G172: 169 | H172: 0.2060606795 | I172: 42.34526167
G173: 170 | H173: 0.4306581473 | I173: 46.42350226
G174: 171 | H174: 0.514136564 | I174: 47.92672863
G175: 172 | H175: 0.215474691 | I175: 42.5288013
G176: 173 | H176: 0.8138159334 | I176: 54.55471883
G177: 174 | H177: 0.7417933111 | I177: 52.62799031
G178: 175 | H178: 0.7169258935 | I178: 52.03578869
G179: 176 | H179: 0.915308825 | I179: 58.33521508
G180: 177 | H180: 0.6195706059 | I180: 49.9427928
G181: 178 | H181: 0.4145928879 | I181: 46.13864932
G182: 179 | H182: 0.6556163763 | I182: 50.68342081
G183: 180 | H183: 0.9786953852 | I183: 63.08019733
G184: 181 | H184: 0.693360532 | I184: 51.49982959
G185: 182 | H185: 0.2224217866 | I185: 42.66286221
G186: 183 | H186: 0.4421518598 | I186: 46.6278557
G187: 184 | H187: 0.1011117319 | I187: 40.05793539
G188: 185 | H188: 0.2202915099 | I188: 42.62187201
G189: 186 | H189: 0.9803293775 | I189: 63.30241635
G190: 187 | H190: 0.2603650452 | I190: 43.3779093
G191: 188 | H191: 0.4327041922 | I191: 46.45984111
G192: 189 | H192: 0.7990868051 | I192: 54.12882261
G193: 190 | H193: 0.9348838112 | I193: 59.3928294
G194: 191 | H194: 0.6056711633 | I194: 49.66561716
G195: 192 | H195: 0.1813084642 | I195: 41.85073953
G196: 193 | H196: 0.9919138863 | I196: =IF(Max>Min,BETAINV(H196,ShapeA,ShapeB,Min,Max),Min) -> 65.48858241
G197: 194 | H197: 0.833192678 | I197: 55.14779608
G198: 195 | H198: 0.1732506342 | I198: 41.68540305
G199: 196 | H199: 0.3892161953 | I199: 45.68976563
G200: 197 | H200: 0.6011525581 | I200: 49.57640477
... 803 more rows

Sheet NetBenefit (hidden)
A1: Iteration | B1: Net Benefit | C1: Sorted Results | D1: Net Benefit | E1: Probability | G1: Graph Data: | H1: Net Benefit | I1: Probability
A2: 1 | B2: 68.52 | C2: -33.7 | D2: =C2 -> -33.7 | E2: =(A2-1)/10 -> 0 | H2: =D2 -> -33.7 | I2: =E2 -> 0
A3: 2 | B3: 142.72 | C3: -32.15 | H3: =D11 -> -12.08 | I3: =E11 -> 1
A4: 3 | B4: 127.28 | C4: -30.54 | H4: =D21 -> -8.12 | I4: =E21 -> 2
A5: 4 | B5: 89.67 | C5: -29.77 | H5: =D31 -> 2.03 | I5: =E31 -> 3
A6: 5 | B6: 134.92 | C6: -24.56 | H6: =D41 -> 8.91 | I6: =E41 -> 4
A7: 6 | B7: 79.34 | C7: -19.94 | H7: =D51 -> 12.37 | I7: =E51 -> 5
A8: 7 | B8: 85.29 | C8: -15.09 | H8: =D61 -> 17.22 | I8: =E61 -> 6
A9: 8 | B9: 68.9 | C9: -12.78 | H9: =D71 -> 21.37 | I9: =E71 -> 7
A10: 9 | B10: 146.83 | C10: -12.51 | H10: =D81 -> 24.86 | I10: =E81 -> 8
A11: 10 | B11: 207.35 | C11: -12.08 | D11: =C11 -> -12.08 | E11: =A11/10 -> 1 | H11: =D91 -> 28.28 | I11: =E91 -> 9
A12: 11 | B12: 102.17 | C12: -11.19 | H12: =D101 -> 30.4 | I12: =E101 -> 10
A13: 12 | B13: 47.17 | C13: -11.17 | H13: =D111 -> 34.23 | I13: =E111 -> 11
A14: 13 | B14: 215.42 | C14: -10.64 | H14: =D121 -> 38.04 | I14: =E121 -> 12
A15: 14 | B15: 61.38 | C15: -10.31 | H15: =D131 -> 41.07 | I15: =E131 -> 13
A16: 15 | B16: 144.04 | C16: -9.54 | H16: =D141 -> 42.38 | I16: =E141 -> 14
A17: 16 | B17: 150.22 | C17: -8.88 | H17: =D151 -> 43.57 | I17: =E151 -> 15
A18: 17 | B18: 172.6 | C18: -8.83 | H18: =D161 -> 44.75 | I18: =E161 -> 16
A19: 18 | B19: 165.57 | C19: -8.58 | H19: =D171 -> 46.65 | I19: =E171 -> 17
A20: 19 | B20: 202.72 | C20: -8.45 | H20: =D181 -> 47.77 | I20: =E181 -> 18
A21: 20 | B21: 152.35 | C21: -8.12 | D21: =C21 -> -8.12 | E21: =A21/10 -> 2 | H21: =D191 -> 49.93 | I21: =E191 -> 19
A22: 21 | B22: 204.7 | C22: -5.25 | H22: =D201 -> 51.36 | I22: =E201 -> 20
A23: 22 | B23: 146.38 | C23: -1.32 | H23: =D211 -> 52.56 | I23: =E211 -> 21
A24: 23 | B24: 190.22 | C24: -0.35 | H24: =D221 -> 54.64 | I24: =E221 -> 22
A25: 24 | B25: 92.92 | C25: 0.03 | H25: =D231 -> 56.42 | I25: =E231 -> 23
A26: 25 | B26: 190.97 | C26: 0.06 | H26: =D241 -> 59.18 | I26: =E241 -> 24
A27: 26 | B27: 212.89 | C27: 0.56 | H27: =D251 -> 60.74 | I27: =E251 -> 25
A28: 27 | B28: 139.42 | C28: 0.77 | H28: =D261 -> 61.98 | I28: =E261 -> 26
A29: 28 | B29: 208.52 | C29: 0.88 | H29: =D271 -> 63.46 | I29: =E271 -> 27
A30: 29 | B30: 174.35 | C30: 1.13 | H30: =D281 -> 65.41 | I30: =E281 -> 28
A31: 30 | B31: 241.39 | C31: 2.03 | D31: =C31 -> 2.03 | E31: =A31/10 -> 3 | H31: =D291 -> 67.82 | I31: =E291 -> 29
A32: 31 | B32: 92.5 | C32: 3.54 | H32: =D301 -> 68.95 | I32: =E301 -> 30
A33: 32 | B33: 109.61 | C33: 4.35 | H33: =D311 -> 71.65 | I33: =E311 -> 31
A34: 33 | B34: 97.13 | C34: 4.97 | H34: =D321 -> 74.15 | I34: =E321 -> 32
A35: 34 | B35: 101.36 | C35: 6.04 | H35: =D331 -> 74.96 | I35: =E331 -> 33
A36: 35 | B36: 195.78 | C36: 6.95 | H36: =D341 -> 77.1 | I36: =E341 -> 34
A37: 36 | B37: 124.58 | C37: 6.98 | H37: =D351 -> 78.54 | I37: =E351 -> 35
A38: 37 | B38: 33.92 | C38: 7.17 | H38: =D361 -> 79.29 | I38: =E361 -> 36
A39: 38 | B39: 29.89 | C39: 8.36 | H39: =D371 -> 80.53 | I39: =E371 -> 37
A40: 39 | B40: 61.23 | C40: 8.68 | H40: =D381 -> 82.96 | I40: =E381 -> 38
A41: 40 | B41: -8.12 | C41: 8.91 | D41: =C41 -> 8.91 | E41: =A41/10 -> 4 | H41: =D391 -> 84.05 | I41: =E391 -> 39
A42: 41 | B42: 233.69 | C42: 9.57 | H42: =D401 -> 85.62 | I42: =E401 -> 40
A43: 42 | B43: 64.81 | C43: 10.08 | H43: =D411 -> 87.34 | I43: =E411 -> 41
A44: 43 | B44: 193.58 | C44: 10.1 | H44: =D421 -> 88.66 | I44: =E421 -> 42
A45: 44 | B45: 153.48 | C45: 10.34 | H45: =D431 -> 90.53 | I45: =E431 -> 43
A46: 45 | B46: 187.34 | C46: 10.37 | H46: =D441 -> 91.55 | I46: =E441 -> 44
A47: 46 | B47: 219.55 | C47: 10.72 | H47: =D451 -> 92.92 | I47: =E451 -> 45
A48: 47 | B48: 39.02 | C48: 11.21 | H48: =D461 -> 94.76 | I48: =E461 -> 46
A49: 48 | B49: 249.05 | C49: 11.35 | H49: =D471 -> 95.57 | I49: =E471 -> 47
A50: 49 | B50: 107.94 | C50: 11.92 | H50: =D481 -> 97.23 | I50: =E481 -> 48
A51: 50 | B51: 99.11 | C51: 12.37 | D51: =C51 -> 12.37 | E51: =A51/10 -> 5 | H51: =D491 -> 98.38 | I51: =E491 -> 49
A52: 51 | B52: 174.7 | C52: 12.85 | H52: =D501 -> 100.93 | I52: =E501 -> 50
A53: 52 | B53: 0.03 | C53: 13.47 | H53: =D511 -> 102.54 | I53: =E511 -> 51
A54: 53 | B54: 193.61 | C54: 13.72 | H54: =D521 -> 104.69 | I54: =E521 -> 52
A55: 54 | B55: 77.2 | C55: 14.26 | H55: =D531 -> 106.02 | I55: =E531 -> 53
A56: 55 | B56: 150.93 | C56: 15.66 | H56: =D541 -> 107.66 | I56: =E541 -> 54
A57: 56 | B57: 149.11 | C57: 16.64 | H57: =D551 -> 108.63 | I57: =E551 -> 55
A58: 57 | B58: 183.71 | C58: 16.82 | H58: =D561 -> 110.79 | I58: =E561 -> 56
A59: 58 | B59: 168.98 | C59: 16.83 | H59: =D571 -> 112.92 | I59: =E571 -> 57
A60: 59 | B60: 79.06 | C60: 17.1 | H60: =D581 -> 114.77 | I60: =E581 -> 58
A61: 60 | B61: 125.26 | C61: 17.22 | D61: =C61 -> 17.22 | E61: =A61/10 -> 6 | H61: =D591 -> 116.04 | I61: =E591 -> 59
A62: 61 | B62: 163.13 | C62: 18.41 | H62: =D601 -> 117.76 | I62: =E601 -> 60
A63: 62 | B63: 182.01 | C63: 18.84 | H63: =D611 -> 119.01 | I63: =E611 -> 61
A64: 63 | B64: 150.93 | C64: 19 | H64: =D621 -> 121.13 | I64: =E621 -> 62
A65: 64 | B65: 155.27 | C65: 19.42 | H65: =D631 -> 123.12 | I65: =E631 -> 63
A66: 65 | B66: 186.5 | C66: 19.57 | H66: =D641 -> 125.09 | I66: =E641 -> 64
A67: 66 | B67: 180.37 | C67: 20.53 | H67: =D651 -> 127.49 | I67: =E651 -> 65
A68: 67 | B68: -0.35 | C68: 20.68 | H68: =D661 -> 129.3 | I68: =E661 -> 66
A69: 68 | B69: 201.77 | C69: 21.14 | H69: =D671 -> 133.65 | I69: =E671 -> 67
A70: 69 | B70: 138.85 | C70: 21.18 | H70: =D681 -> 135.04 | I70: =E681 -> 68
A71: 70 | B71: -8.83 | C71: 21.37 | D71: =C71 -> 21.37 | E71: =A71/10 -> 7 | H71: =D691 -> 136.66 | I71: =E691 -> 69
A72: 71 | B72: 150.05 | C72: 21.59 | H72: =D701 -> 138.73 | I72: =E701 -> 70
A73: 72 | B73: 282.7 | C73: 22.19 | H73: =D711 -> 140.8 | I73: =E711 -> 71
A74: 73 | B74: 138.34 | C74: 22.39 | H74: =D721 -> 143.45 | I74: =E721 -> 72
A75: 74 | B75: 69.96 | C75: 23.12 | H75: =D731 -> 146.34 | I75: =E731 -> 73
A76: 75 | B76: 198.58 | C76: 23.17 | H76: =D741 -> 148.93 | I76: =E741 -> 74
A77: 76 | B77: 124.2 | C77: 23.31 | H77: =D751 -> 150.93 | I77: =E751 -> 75
A78: 77 | B78: 112.18 | C78: 23.35 | H78: =D761 -> 152.39 | I78: =E761 -> 76
A79: 78 | B79: 47.24 | C79: 23.79 | H79: =D771 -> 154.52 | I79: =E771 -> 77
A80: 79 | B80: 130.13 | C80: 24.32 | H80: =D781 -> 158.1 | I80: =E781 -> 78
A81: 80 | B81: 114.89 | C81: 24.86 | D81: =C81 -> 24.86 | E81: =A81/10 -> 8 | H81: =D791 -> 160.34 | I81: =E791 -> 79
A82: 81 | B82: 168.43 | C82: 25.02 | H82: =D801 -> 162.48 | I82: =E801 -> 80
A83: 82 | B83: 162.24 | C83: 25.47 | H83: =D811 -> 165.41 | I83: =E811 -> 81
A84: 83 | B84: 106.82 | C84: 25.78 | H84: =D821 -> 167.09 | I84: =E821 -> 82
A85: 84 | B85: 140.21 | C85: 26.12 | H85: =D831 -> 168.94 | I85: =E831 -> 83
A86: 85 | B86: 112.43 | C86: 26.21 | H86: =D841 -> 170.41 | I86: =E841 -> 84
A87: 86 | B87: 42.27 | C87: 27.48 | H87: =D851 -> 173.02 | I87: =E851 -> 85
A88: 87 | B88: 17.1 | C88: 27.66 | H88: =D861 -> 176.34 | I88: =E861 -> 86
A89: 88 | B89: 10.37 | C89: 27.95 | H89: =D871 -> 178.51 | I89: =E871 -> 87
A90: 89 | B90: 78.71 | C90: 28.26 | H90: =D881 -> 180.84 | I90: =E881 -> 88
A91: 90 | B91: 141.36 | C91: 28.28 | D91: =C91 -> 28.28 | E91: =A91/10 -> 9 | H91: =D891 -> 186 | I91: =E891 -> 89
A92: 91 | B92: 98.81 | C92: 28.46 | H92: =D901 -> 190.21 | I92: =E901 -> 90
A93: 92 | B93: 151.73 | C93: 28.92 | H93: =D911 -> 193.58 | I93: =E911 -> 91
A94: 93 | B94: 136.83 | C94: 28.94 | H94: =D921 -> 196.49 | I94: =E921 -> 92
A95: 94 | B95: 80.43 | C95: 29.12 | H95: =D931 -> 198.73 | I95: =E931 -> 93
A96: 95 | B96: 95.78 | C96: 29.75 | H96: =D941 -> 202.24 | I96: =E941 -> 94
A97: 96 | B97: 45.89 | C97: 29.77 | H97: =D951 -> 209.04 | I97: =E951 -> 95
A98: 97 | B98: 44.03 | C98: 29.89 | H98: =D961 -> 216.89 | I98: =E961 -> 96
A99: 98 | B99: 0.56 | C99: 29.95 | H99: =D971 -> 231.59 | I99: =E971 -> 97
A100: 99 | B100: 179.59 | C100: 30.05 | H100: =D981 -> 237.41 | I100: =E981 -> 98
A101: 100 | B101: 30.52 | C101: 30.4 | D101: =C101 -> 30.4 | E101: =A101/10 -> 10 | H101: =D991 -> 260.08 | I101: =E991 -> 99
A102: 101 | B102: 233.48 | C102: 30.52 | H102: =D1001 -> 284.91 | I102: =E1001 -> 100
A103: 102 | B103: 101.98 | C103: 30.82
A104: 103 | B104: -10.31 | C104: 31.06
A105: 104 | B105: 76.33 | C105: 32.02
A106: 105 | B106: 23.35 | C106: 32.06
A107: 106 | B107: 122.1 | C107: 32.08
A108: 107 | B108: 48.52 | C108: 33.23
A109: 108 | B109: 180.18 | C109: 33.29
A110: 109 | B110: 189.09 | C110: 33.92
A111: 110 | B111: 38.57 | C111: 34.23 | D111: =C111 -> 34.23 | E111: =A111/10 -> 11
A112: 111 | B112: 30.05 | C112: 34.76
A113: 112 | B113: 88.66 | C113: 35.15
A114: 113 | B114: 127.58 | C114: 35.49
A115: 114 | B115: 94.76 | C115: 35.8
A116: 115 | B116: 15.66 | C116: 36.05
A117: 116 | B117: 168 | C117: 37.14
A118: 117 | B118: 118.57 | C118: 37.47
A119: 118 | B119: 68.36 | C119: 37.63
A120: 119 | B120: -30.54 | C120: 37.75
A121: 120 | B121: 127.83 | C121: 38.04 | D121: =C121 -> 38.04 | E121: =A121/10 -> 12
A122: 121 | B122: 242.76 | C122: 38.27
A123: 122 | B123: 284.91 | C123: 38.54
A124: 123 | B124: 29.75 | C124: 38.57
A125: 124 | B125: 133.51 | C125: 39.02
A126: 125 | B126: 77.1 | C126: 39.37
A127: 126 | B127: 113.08 | C127: 39.98
A128: 127 | B128: 137.12 | C128: 39.99
A129: 128 | B129: 120.12 | C129: 40.07
A130: 129 | B130: 121.56 | C130: 40.69
A131: 130 | B131: 22.39 | C131: 41.07 | D131: =C131 -> 41.07 | E131: =A131/10 -> 13
A132: 131 | B132: 36.05 | C132: 41.15
A133: 132 | B133: -12.51 | C133: 41.3
A134: 133 | B134: 202.24 | C134: 41.55
A135: 134 | B135: 63.52 | C135: 41.57
A136: 135 | B136: 168.24 | C136: 41.74
A137: 136 | B137: 231.59 | C137: 42.01
A138: 137 | B138: 177.87 | C138: 42.05
A139: 138 | B139: 171.34 | C139: 42.22
A140: 139 | B140: 193.89 | C140: 42.27
A141: 140 | B141: 118.14 | C141: 42.38 | D141: =C141 -> 42.38 | E141: =A141/10 -> 14
A142: 141 | B142: 161.8 | C142: 42.42
A143: 142 | B143: 101.93 | C143: 42.43
A144: 143 | B144: 108.31 | C144: 42.64
A145: 144 | B145: 187.52 | C145: 42.68
A146: 145 | B146: 21.18 | C146: 42.93
A147: 146 | B147: 212.09 | C147: 43.09
A148: 147 | B148: 106.11 | C148: 43.19
A149: 148 | B149: 114 | C149: 43.23
A150: 149 | B150: 114.77 | C150: 43.25
A151: 150 | B151: 84.92 | C151: 43.57 | D151: =C151 -> 43.57 | E151: =A151/10 -> 15
A152: 151 | B152: 174.53 | C152: 43.57
A153: 152 | B153: 10.08 | C153: 43.6
A154: 153 | B154: 201.77 | C154: 43.75
A155: 154 | B155: 125.09 | C155: 43.84
A156: 155 | B156: 53.16 | C156: 44.03
A157: 156 | B157: 80.42 | C157: 44.25
A158: 157 | B158: 97.88 | C158: 44.47
A159: 158 | B159: 136.59 | C159: 44.51
A160: 159 | B160: 48.63 | C160: 44.73
A161: 160 | B161: 88.18 | C161: 44.75 | D161: =C161 -> 44.75 | E161: =A161/10 -> 16
A162: 161 | B162: 220.64 | C162: 44.84
A163: 162 | B163: 154.42 | C163: 44.98
A164: 163 | B164: 195.55 | C164: 45.01
A165: 164 | B165: 44.75 | C165: 45.48
A166: 165 | B166: 54.98 | C166: 45.89
A167: 166 | B167: 134.88 | C167: 46.07
A168: 167 | B168: 277.21 | C168: 46.31
A169: 168 | B169: 42.05 | C169: 46.44
A170: 169 | B170: 152.39 | C170: 46.44
A171: 170 | B171: 55.04 | C171: 46.65 | D171: =C171 -> 46.65 | E171: =A171/10 -> 17
A172: 171 | B172: 29.12 | C172: 46.71
A173: 172 | B173: 42.93 | C173: 46.88
A174: 173 | B174: 126.46 | C174: 47.04
A175: 174 | B175: 238.49 | C175: 47.17
A176: 175 | B176: 97.54 | C176: 47.24
A177: 176 | B177: 97.24 | C177: 47.53
A178: 177 | B178: 146.7 | C178: 47.55
A179: 178 | B179: 170.06 | C179: 47.74
A180: 179 | B180: 74.89 | C180: 47.76
A181: 180 | B181: 231.83 | C181: 47.77 | D181: =C181 -> 47.77 | E181: =A181/10 -> 18
A182: 181 | B182: 178.58 | C182: 47.79
A183: 182 | B183: 83.26 | C183: 47.97
A184: 183 | B184: 49.18 | C184: 48
A185: 184 | B185: 52.64 | C185: 48.03
A186: 185 | B186: 123.05 | C186: 48.21
A187: 186 | B187: 115 | C187: 48.52
A188: 187 | B188: 74.77 | C188: 48.63
A189: 188 | B189: 23.79 | C189: 49.18
A190: 189 | B190: 58.27 | C190: 49.43
A191: 190 | B191: 56.66 | C191: 49.93 | D191: =C191 -> 49.93 | E191: =A191/10 -> 19
A192: 191 | B192: 59.18 | C192: 50.01
A193: 192 | B193: 14.26 | C193: 50.03
A194: 193 | B194: 105.3 | C194: 50.08
A195: 194 | B195: 67.37 | C195: 50.15
A196: 195 | B196: 40.69 | C196: 50.35
A197: 196 | B197: 75.67 | C197: 50.39
A198: 197 | B198: 169.3 | C198: 50.93
A199: 198 | B199: 190.57 | C199: 51.14
A200: 199 | B200: 78.81 | C200: 51.33
... 801 more rows

Sheet Sheet1 (hidden)
A1: =NetBenefit!D2 -> -33.7
